bitfinex-derivatives/quotes_SOLF0:USTF0_20250109
["timestamp","ask_amount","ask_price","bid_price","bid_amount"]
[1736423293230,1.5813,191.27,191.16,10.5252671]
[1736423293424,1.5813,191.27,191.12,1.4947]
[1736423293425,1.6103,191.28,191.19,10.5252671]
[1736423294017,2.6158,191.25,191.2,2.6163]
[1736423294824,2.6158,191.25,191.19,10.5252671]
[1736423295028,15.72,191.47,191.22,10.5252671]
[1736423295214,10.5252671,191.35,191.22,10.5252671]
[1736423295722,10.5252671,191.35,191.25,2.6156]
[1736423295918,10.5252671,191.35,191.25,13.1408671]
[1736423296130,4.62,191.37,191.25,10.5252671]
[1736423296330,2.6148,191.32,191.28,2.6154]
[1736423296519,2.6148,191.32,191.25,10.5252671]
[1736423296724,4.62,191.37,191.25,10.5252671]
[1736423297022,4.62,191.37,191.23,3.0762]
[1736423297221,10.5252671,191.32,191.22,10.5252671]
[1736423297427,2.616,191.24,191.2,2.6164]
[1736423297622,10.5252671,191.32,191.19,10.5252671]
[1736423297623,10.5252671,191.29,191.19,10.5252671]
[1736423297829,10.5252671,191.29,191.17,4.62]
[1736423298030,10.5252671,191.26,191.13,10.5252671]
[1736423298829,10.5252671,191.26,191.16,10.5252671]
[1736423299027,4.5518,191.28,191.16,10.5252671]
[1736423299325,2.6156,191.27,191.22,2.6162]
[1736423299730,3.049,191.28,191.19,10.5252671]
[1736423300430,10.5252671,191.32,191.19,10.5252671]
[1736423300625,1.5028,191.33,191.22,10.5252671]
[1736423300829,2.6152,191.3,191.26,2.6155]
[1736423301028,1.5028,191.33,191.22,10.5252671]
[1736423301425,2.6147,191.33,191.29,2.6151]
[1736423302331,1.5391,191.36,191.28,10.5252671]
[1736423304930,1.5391,191.36,191.25,10.5252671]
[1736423305634,1.5391,191.36,191.26,2.6155]
[1736423306136,10.5252671,191.35,191.26,2.6155]
[1736423306626,10.5252671,191.35,191.25,2.6157]
[1736423306825,2.6152,191.29,191.25,2.6157]
[1736423307929,2.6152,191.29,191.21,7.7583]
[1736423308131,2.6152,191.29,191.26,2.6156]
[1736423308330,2.6152,191.29,191.21,7.7583]
[1736423308734,1.5391,191.36,191.25,2.6157]
[1736423308934,1.5391,191.36,191.23,16.80882236]
[1736423309437,2.6144,191.35,191.26,16.80882236]
[1736423309629,1.5804,191.4,191.26,16.80882236]
[1736423310333,18.38922236,191.4,191.23,16.80882236]
[1736423310831,2.6152,191.29,191.25,2.6157]
[1736423311228,18.38922236,191.4,191.23,16.80882236]
[1736423312438,16.80882236,191.34,191.2,18.28042236]
[1736423312634,7.6947,191.33,191.2,1.4716]
[1736423312836,16.80882236,191.31,191.14,21.42882236]
[1736423313033,16.80882236,191.31,191.14,22.93932236]
[1736423313233,1.619,191.3,191.17,2.6168]
[1736423313844,2.6165,191.2,191.16,2.6169]
[1736423314028,1.619,191.3,191.14,22.93932236]
[1736423314537,2.6163,191.22,191.17,2.6167]
[1736423315035,2.6163,191.22,191.14,22.93932236]
[1736423315234,2.6163,191.22,191.18,2.6167]
[1736423316839,2.6163,191.21,191.17,2.6168]
[1736423317038,1.619,191.3,191.14,22.93932236]
[1736423318238,2.6164,191.21,191.17,2.6168]
[1736423318538,1.619,191.3,191.14,22.93932236]
[1736423318738,2.6162,191.22,191.19,2.6166]
[1736423318937,1.619,191.3,191.14,22.93932236]
[1736423319538,2.6164,191.21,191.17,2.6168]
[1736423320438,1.619,191.3,191.2,2.6164]
[1736423320642,1.619,191.3,191.14,22.93932236]
[1736423322034,16.80882236,191.28,191.14,1.5105]
[1736423323040,2.6166,191.2,191.16,2.617]
[1736423323339,4.64,191.26,191.14,18.31932236]
[1736423323538,1.619,191.3,191.18,2.6167]
[1736423323740,4.64,191.29,191.18,2.6167]
[1736423325141,4.64,191.29,191.17,2.6168]
[1736423325538,2.6164,191.21,191.17,2.6168]
[1736423325733,4.64,191.29,191.17,2.6168]
[1736423326541,4.64,191.29,191.16,2.617]
[1736423326542,2.6166,191.19,191.16,2.617]
[1736423326743,16.80882236,191.28,191.14,18.31932236]
[1736423327343,10.51537168,191.26,191.14,1.5105]
[1736423327742,2.6167,191.19,191.15,2.617]
[1736423328236,2.6167,191.18,191.15,2.617]
[1736423329347,8.62027247,191.28,191.16,10.51537168]
[1736423329553,10.51537168,191.29,191.19,10.51537168]
[1736423329751,2.6159,191.24,191.21,2.6163]
[1736423329954,2.6159,191.24,191.19,10.51537168]
[1736423330247,6.239,191.3,191.19,10.51537168]
[1736423330446,1.619,191.3,191.21,2.6162]
[1736423330848,2.6159,191.24,191.21,2.6162]
[1736423331051,1.619,191.3,191.2,2.6164]
[1736423331352,1.619,191.3,191.19,10.51537168]
[1736423331553,2.6161,191.23,191.19,10.51537168]
[1736423332452,1.619,191.3,191.19,13.13197168]
[1736423332643,2.6163,191.22,191.19,10.51537168]
[1736423333357,2.6163,191.22,191.18,2.6166]
[1736423333555,10.51537168,191.29,191.16,10.51537168]
[1736423333854,10.51537168,191.29,191.17,2.6168]
[1736423335257,0.80507912,191.28,191.17,2.6168]
[1736423335857,2.6166,191.19,191.16,13.13237168]
[1736423337250,2.6166,191.19,191.14,1.5105]
[1736423337457,2.6169,191.17,191.14,1.5105]
[1736423337760,2.6169,191.17,191.13,12.02547168]
[1736423338363,2.6167,191.19,191.13,12.02547168]
[1736423338661,4.62,191.24,191.13,12.02547168]
[1736423339158,2.6165,191.2,191.13,12.02547168]
[1736423339356,4.62,191.24,191.16,10.51537168]
[1736423339558,2.6164,191.21,191.17,2.6168]
[1736423339757,4.62,191.24,191.17,2.6168]
[1736423340155,2.6163,191.22,191.18,2.6167]
[1736423340354,4.62,191.24,191.18,2.6167]
[1736423340950,4.62,191.24,191.19,2.6166]
[1736423341155,8.64571174,191.29,191.19,10.51537168]
[1736423341355,22.31165513,191.3,191.19,10.51537168]
[1736423341659,2.6157,191.26,191.22,2.6161]
[1736423342062,2.6157,191.26,191.23,2.616]
[1736423342360,5.57728345,191.3,191.19,10.51537168]
[1736423342656,5.57728345,191.3,191.26,2.6156]
[1736423342863,5.57728345,191.3,191.22,10.51537168]
[1736423343060,2.6154,191.28,191.22,10.51537168]
[1736423343755,2.6153,191.29,191.22,10.51537168]
[1736423344163,2.6153,191.29,191.23,1.5955]
[1736423345064,2.6153,191.29,191.25,2.6157]
[1736423345765,5.57728345,191.3,191.24,2.6159]
[1736423345766,2.6154,191.28,191.24,2.6159]
[1736423345967,5.57728345,191.3,191.22,10.51537168]
[1736423346366,2.6156,191.27,191.23,2.616]
[1736423346667,5.57728345,191.3,191.23,2.616]
[1736423346966,0.80481748,191.29,191.19,10.51537168]
[1736423347166,10.51537168,191.27,191.17,1.4728]
[1736423347366,2.6163,191.22,191.18,2.6167]
[1736423347567,14.74089844,191.29,191.17,1.4728]
[1736423348467,2.6161,191.23,191.2,2.6164]
[1736423348667,6.0929,191.29,191.17,1.4728]
[1736423349263,6.0929,191.29,191.19,10.51537168]
[1736423349865,2.6157,191.26,191.22,2.6162]
[1736423350366,2.6158,191.25,191.19,10.51537168]
[1736423350568,6.0929,191.29,191.19,10.51537168]
[1736423351069,2.616,191.24,191.19,10.51537168]
[1736423351469,14.74874646,191.29,191.17,1.4728]
[1736423351871,10.51537168,191.27,191.17,1.4728]
[1736423352776,2.6165,191.2,191.16,16.17667168]
[1736423352967,2.6165,191.2,191.16,3.0444]
[1736423353371,2.6162,191.22,191.16,13.55977168]
[1736423354074,2.6162,191.22,191.19,2.6166]
[1736423355073,2.6163,191.21,191.18,2.6167]
[1736423355577,2.6165,191.2,191.17,2.6168]
[1736423355775,10.51537168,191.27,191.13,10.51537168]
[1736423355978,3.98295763,191.26,191.13,10.51537168]
[1736423356169,3.1789,191.26,191.13,10.51537168]
[1736423356674,2.6166,191.19,191.15,2.617]
[1736423356875,2.6166,191.19,191.13,10.51537168]
[1736423357374,3.1789,191.26,191.13,10.51537168]
[1736423357573,3.1789,191.26,191.17,2.6167]
[1736423358176,3.1789,191.26,191.18,2.6166]
[1736423358177,2.6163,191.21,191.18,2.6166]
[1736423359475,2.6163,191.21,191.17,2.6168]
[1736423360267,3.1789,191.26,191.13,10.51537168]
[1736423360877,2.6167,191.19,191.15,2.617]
[1736423362483,2.6167,191.18,191.14,2.6173]
[1736423362678,3.1789,191.26,191.14,2.6173]
[1736423362879,0.80394655,191.25,191.14,2.6173]
[1736423363080,2.6168,191.18,191.14,2.6173]
[1736423363282,3.1789,191.26,191.16,2.617]
[1736423363481,2.6166,191.19,191.16,2.617]
[1736423364081,3.1789,191.26,191.16,10.51537168]
[1736423365083,2.6165,191.2,191.17,2.6168]
[1736423365286,3.1789,191.26,191.13,10.51537168]
[1736423365790,2.6166,191.19,191.16,2.6169]
[1736423366585,2.6168,191.18,191.15,2.6171]
[1736423366785,10.51537168,191.24,191.11,3.1674]
[1736423366983,10.51537168,191.21,191.11,1.586]
[1736423367183,2.6175,191.13,191.09,2.6178]
[1736423367383,1.5788,191.2,191.09,2.6178]
[1736423367681,2.617,191.17,191.12,2.6175]
[1736423367887,2.617,191.17,191.1,10.51537168]
[1736423368283,1.5788,191.2,191.1,10.51537168]
[1736423368488,2.617,191.16,191.12,2.6174]
[1736423368885,2.617,191.16,191.13,2.6174]
[1736423370685,2.6173,191.14,191.07,1.5228]
[1736423370881,1.5788,191.2,191.07,12.03817168]
[1736423371388,10.51537168,191.18,191.07,10.51537168]
[1736423371583,2.9982,191.17,191.07,10.51537168]
[1736423371980,2.6178,191.1,191.07,13.13357168]
[1736423372884,2.6177,191.11,191.08,2.6181]
[1736423373090,2.9982,191.17,191.07,10.51537168]
[1736423373291,1.505,191.17,191.07,10.51537168]
[1736423373988,2.6173,191.14,191.1,2.6178]
[1736423374690,2.6176,191.12,191.08,2.618]
[1736423375186,1.505,191.17,191.07,10.51537168]
[1736423375389,10.51537168,191.16,191.05,1.5543]
[1736423375782,2.6181,191.09,191.05,4.1727]
[1736423375980,10.51537168,191.16,191.05,1.5543]
[1736423376290,10.51537168,191.1,191.02,1.5679]
[1736423376498,4.6,191.14,191.02,1.5679]
[1736423376787,10.51537168,191.11,191.02,1.5679]
[1736423376983,2.6184,191.06,191.02,4.1868]
[1736423377179,1.595,191.13,191.02,2.6189]
[1736423377380,12.11037168,191.13,191.01,10.51537168]
[1736423377582,12.11037168,191.13,191.04,2.6186]
[1736423377988,2.6181,191.09,191.04,2.6186]
[1736423378584,1.595,191.13,191.04,10.51537168]
[1736423378788,4.6,191.14,191.04,10.51537168]
[1736423379186,2.6176,191.12,191.08,2.6181]
[1736423380091,2.6176,191.12,191.09,2.618]
[1736423380485,2.6174,191.13,191.07,10.51537168]
[1736423380690,15.11537168,191.19,191.07,10.51537168]
[1736423380995,10.51537168,191.19,191.07,10.51537168]
[1736423381188,2.6172,191.15,191.08,1.4731]
[1736423381493,10.51537168,191.19,191.11,2.6176]
[1736423383096,2.6173,191.14,191.11,2.6176]
[1736423383795,10.51537168,191.19,191.11,2.6176]
[1736423383997,10.51537168,191.19,191.08,1.4731]
[1736423384692,2.6175,191.13,191.1,2.6178]
[1736423385099,10.51537168,191.19,191.1,2.6178]
[1736423385388,10.51537168,191.19,191.08,2.6181]
[1736423385389,2.6177,191.11,191.08,2.6181]
[1736423385595,10.51537168,191.16,191.04,15.11537168]
[1736423385896,10.51537168,191.16,191.04,10.51537168]
[1736423386797,2.6177,191.11,191.08,2.6181]
[1736423387392,10.51537168,191.19,191.07,10.51537168]
[1736423388797,2.6174,191.13,191.1,2.6177]
[1736423388997,10.51537168,191.19,191.07,10.51537168]
[1736423389701,2.6177,191.12,191.09,2.6179]
[1736423390198,10.51537168,191.19,191.07,10.51537168]
[1736423390500,2.6173,191.14,191.07,10.51537168]
[1736423391202,2.6173,191.14,191.1,2.6177]
[1736423393802,2.6173,191.14,191.07,10.51537168]
[1736423393998,2.6171,191.16,191.1,10.51537168]
[1736423394206,1.5298,191.2,191.1,10.51537168]
[1736423394599,2.617,191.16,191.13,2.6173]
[1736423395702,1.5298,191.2,191.1,10.51537168]
[1736423396307,2.6172,191.15,191.11,2.6176]
[1736423396526,2.6172,191.15,191.1,10.51537168]
[1736423396810,1.5298,191.2,191.1,10.51537168]
[1736423397011,2.617,191.16,191.1,10.51537168]
[1736423397614,2.617,191.16,191.12,2.6174]
[1736423397808,1.5298,191.2,191.12,2.6174]
[1736423398014,2.6171,191.15,191.12,2.6174]
[1736423399206,2.6173,191.14,191.11,2.6177]
[1736423400616,2.6175,191.13,191.1,2.6178]
[1736423400817,10.51537168,191.19,191.08,1.5591]
[1736423401515,1.5298,191.2,191.12,6.73272318]
[1736423401817,2.6163,191.21,191.18,9.34942318]
[1736423402114,6.73272318,191.25,191.18,6.73272318]
[1736423402321,6.73272318,191.27,191.2,6.73272318]
[1736423402622,11.71579597,191.28,191.22,6.73272318]
[1736423402816,8.64349597,191.28,191.24,6.73272318]
[1736423403022,2.6154,191.28,191.25,2.6158]
[1736423403317,8.64349597,191.31,191.25,2.6158]
[1736423403621,8.19248345,191.3,191.26,6.73272318]
[1736423403821,5.57728345,191.3,191.26,6.73272318]
[1736423404621,2.6153,191.29,191.26,6.73272318]
[1736423404825,5.57728345,191.3,191.26,6.73272318]
[1736423405323,5.57728345,191.3,191.25,2.6158]
[1736423405918,2.6152,191.29,191.25,2.6158]
[1736423406219,5.57728345,191.3,191.26,2.6156]
[1736423406420,2.6154,191.28,191.22,10.50525826]
[1736423406623,2.6154,191.28,191.24,2.6159]
[1736423407821,5.57728345,191.3,191.24,2.6159]
[1736423408022,2.6153,191.29,191.25,2.6158]
[1736423408225,5.57728345,191.3,191.22,10.50525826]
[1736423408425,1.5402,191.34,191.25,10.50525826]
[1736423408624,2.6149,191.32,191.28,2.6153]
[1736423408820,1.5402,191.34,191.25,10.50525826]
[1736423409020,10.50525826,191.37,191.25,10.50525826]
[1736423409222,2.6149,191.32,191.27,2.6155]
[1736423409526,10.50525826,191.37,191.27,2.6155]
[1736423410220,2.6151,191.31,191.27,2.6155]
[1736423410630,10.50525826,191.37,191.26,2.6156]
[1736423410924,10.50525826,191.37,191.22,10.50525826]
[1736423411427,2.6149,191.32,191.27,2.6154]
[1736423411826,2.6149,191.32,191.22,10.50525826]
[1736423412028,2.6145,191.34,191.3,2.6151]
[1736423412223,1.5098,191.38,191.26,4.5303]
[1736423412926,2.6147,191.34,191.29,2.6152]
[1736423413128,10.50525826,191.37,191.26,4.5303]
[1736423413325,2.615,191.31,191.27,2.6155]
[1736423413624,10.50525826,191.34,191.26,1.573]
[1736423413818,10.50525826,191.34,191.22,10.50525826]
[1736423414024,2.6149,191.32,191.27,2.6154]
[1736423414326,2.6149,191.32,191.22,10.50525826]
[1736423414524,2.6149,191.32,191.25,10.50525826]
[1736423414721,2.6149,191.32,191.27,2.6155]
[1736423415025,10.50525826,191.37,191.25,10.50525826]
[1736423415328,2.6149,191.32,191.22,10.50525826]
[1736423415923,2.615,191.31,191.22,10.50525826]
[1736423416523,2.6151,191.3,191.26,2.6155]
[1736423416923,10.50525826,191.37,191.22,10.50525826]
[1736423417222,2.615,191.31,191.27,2.6155]
[1736423417828,2.6147,191.33,191.22,10.50525826]
[1736423418128,10.50525826,191.37,191.26,10.50525826]
[1736423418429,2.6145,191.35,191.3,2.615]
[1736423419027,2.6145,191.35,191.31,2.6149]
[1736423419432,2.6143,191.36,191.32,2.6147]
[1736423420230,2.6141,191.38,191.29,10.50525826]
[1736423420426,2.6141,191.38,191.3,1.5634]
[1736423420826,2.6141,191.38,191.35,2.6144]
[1736423421328,5.5739162,191.42,191.35,2.6144]
[1736423421524,2.6139,191.39,191.35,2.6144]
[1736423421723,5.5739162,191.42,191.35,2.6144]
[1736423422031,2.6139,191.39,191.35,2.6144]
[1736423422525,2.6139,191.39,191.31,10.50525826]
[1736423422526,5.5739162,191.42,191.37,2.6141]
[1736423422731,2.6138,191.4,191.37,2.6141]
[1736423423130,5.5739162,191.42,191.34,10.50525826]
[1736423423335,2.6136,191.42,191.38,2.6139]
[1736423424029,2.6136,191.42,191.39,2.6138]
[1736423424233,2.6136,191.42,191.34,10.50525826]
[1736423424532,10.50525826,191.45,191.36,2.6142]
[1736423424728,0.80209681,191.44,191.31,10.50525826]
[1736423424924,10.50525826,191.42,191.31,10.50525826]
[1736423425126,2.6141,191.38,191.34,2.6145]
[1736423425828,2.6141,191.38,191.31,10.50525826]
[1736423426035,2.6139,191.39,191.35,2.6143]
[1736423426339,1.5435,191.43,191.31,10.50525826]
[1736423426536,2.6138,191.4,191.37,2.6141]
[1736423427428,2.6138,191.4,191.31,10.50525826]
[1736423427429,4.58,191.47,191.34,10.50525826]
[1736423427630,10.50525826,191.48,191.37,10.50525826]
[1736423428032,1.5536,191.5,191.38,1.5928]
[1736423428541,2.613,191.46,191.42,2.6134]
[1736423428736,1.5536,191.5,191.4,10.50525826]
[1736423429133,2.6125,191.49,191.45,2.613]
[1736423429839,2.6126,191.48,191.45,2.613]
[1736423430437,15.08525826,191.54,191.45,2.613]
[1736423430438,2.6125,191.49,191.45,2.613]
[1736423431038,10.50525826,191.54,191.43,10.50525826]
[1736423431431,2.6125,191.5,191.46,2.6129]
[1736423431631,2.6125,191.5,191.43,10.50525826]
[1736423431835,10.50525826,191.54,191.43,10.50525826]
[1736423432038,2.6123,191.51,191.47,2.6127]
[1736423432236,10.50525826,191.54,191.43,10.50525826]
[1736423432940,2.6121,191.52,191.48,2.6125]
[1736423433135,10.50525826,191.54,191.43,10.50525826]
[1736423433839,2.6123,191.51,191.47,2.6127]
[1736423434442,2.6121,191.52,191.48,2.6126]
[1736423434942,2.6122,191.51,191.48,2.6126]
[1736423435143,3.0699,191.55,191.44,1.5487]
[1736423435338,10.50525826,191.54,191.44,1.5487]
[1736423435536,10.50525826,191.54,191.43,10.50525826]
[1736423436136,2.6127,191.48,191.44,2.6131]
[1736423436738,2.6128,191.47,191.43,2.6133]
[1736423437132,15.08525826,191.51,191.39,1.5487]
[1736423437340,10.50525826,191.48,191.38,1.5928]
[1736423437542,3.0427,191.47,191.38,1.5928]
[1736423437740,2.6134,191.43,191.38,4.2068]
[1736423438238,3.0427,191.47,191.38,4.2068]
[1736423438444,3.0427,191.47,191.38,1.5928]
[1736423438841,10.50525826,191.48,191.38,1.5928]
[1736423439143,2.6129,191.47,191.42,2.6133]
[1736423439343,15.08525826,191.51,191.42,2.6133]
[1736423439744,2.6131,191.45,191.42,2.6133]
[1736423440844,2.6132,191.44,191.4,2.6137]
[1736423441040,10.50525826,191.48,191.35,1.4895]
[1736423441245,10.50525826,191.45,191.34,10.50525826]
[1736423441448,2.6139,191.39,191.35,2.6144]
[1736423442242,2.6137,191.4,191.36,2.6142]
[1736423444250,3.094,191.44,191.34,10.50525826]
[1736423444445,10.50525826,191.42,191.31,10.50525826]
[1736423445647,2.6139,191.39,191.35,2.6143]
[1736423448855,2.614,191.38,191.35,2.6143]
[1736423449152,7.674,191.44,191.35,2.6143]
[1736423449351,3.094,191.44,191.34,10.50525826]
[1736423449556,1.5807,191.44,191.37,10.50525826]
[1736423449756,1.4968,191.47,191.37,10.50525826]
[1736423449956,2.6132,191.44,191.37,10.50525826]
[1736423450453,1.4968,191.47,191.37,10.50525826]
[1736423451154,2.6136,191.41,191.37,13.11935826]
[1736423451455,2.6136,191.41,191.37,2.6141]
[1736423451752,2.6139,191.39,191.35,2.6143]
[1736423452250,2.6139,191.39,191.34,10.50525826]
[1736423452457,2.6139,191.39,191.36,2.6142]
[1736423452643,2.6138,191.4,191.36,2.6142]
[1736423452844,10.50525826,191.44,191.34,10.50525826]
[1736423453346,2.6138,191.4,191.34,10.50525826]
[1736423454154,1.5362,191.46,191.37,10.50525826]
[1736423454654,2.6132,191.44,191.37,10.50525826]
[1736423455255,2.6132,191.44,191.4,2.6136]
[1736423455456,2.6132,191.44,191.37,10.50525826]
[1736423456157,2.6131,191.45,191.37,10.50525826]
[1736423456660,2.6131,191.45,191.41,2.6135]
[1736423459353,2.6129,191.46,191.37,10.50525826]
[1736423459559,2.6129,191.46,191.38,1.5893]
[1736423459753,2.6129,191.46,191.38,3.0564]
[1736423460057,2.6128,191.47,191.4,10.50525826]
[1736423460456,2.6127,191.48,191.45,2.613]
[1736423461159,2.6128,191.47,191.44,2.6131]
[1736423461458,2.6128,191.47,191.4,10.50525826]
[1736423461658,2.6128,191.47,191.42,2.6134]
[1736423461859,2.6128,191.47,191.4,10.50525826]
[1736423463167,2.6128,191.47,191.44,2.6131]
[1736423464671,2.613,191.46,191.4,10.50525826]
[1736423465667,2.613,191.45,191.42,2.6133]
[1736423466675,7.14034704,191.5,191.4,10.50525826]
[1736423466870,2.6129,191.47,191.43,2.6133]
[1736423467064,2.6129,191.47,191.4,10.50525826]
[1736423467269,2.6126,191.49,191.45,2.6129]
[1736423467868,5.57144704,191.5,191.4,10.50525826]
[1736423468069,8.18384704,191.5,191.47,2.6127]
[1736423468674,8.18384704,191.5,191.46,2.6128]
[1736423469174,8.18384704,191.5,191.43,10.50525826]
[1736423469378,8.18384704,191.5,191.47,2.6128]
[1736423470074,6.70917771,191.54,191.48,2.6125]
[1736423470775,2.6121,191.52,191.48,2.6125]
[1736423470976,1.5,191.58,191.51,6.70917771]
[1736423471575,2.6115,191.56,191.52,2.612]
[1736423471877,6.70917771,191.57,191.51,6.70917771]
[1736423472369,6.70917771,191.57,191.49,6.70917771]
[1736423472567,2.6118,191.54,191.5,2.6123]
[1736423472780,6.70917771,191.57,191.51,6.70917771]
[1736423473076,1.5,191.58,191.51,6.70917771]
[1736423473281,2.6117,191.55,191.51,9.32127771]
[1736423474573,6.70917771,191.57,191.49,6.70917771]
[1736423474780,6.70917771,191.55,191.49,6.70917771]
[1736423475381,11.97949891,191.58,191.42,4.58]
[1736423475683,10.47949891,191.55,191.43,10.47949891]
[1736423476476,15.05949891,191.55,191.43,10.47949891]
[1736423476981,2.39471383,191.54,191.43,13.09279891]
[1736423477180,1.5933,191.54,191.43,13.09279891]
[1736423477379,10.47949891,191.52,191.43,2.6133]
[1736423477579,10.47949891,191.52,191.4,10.47949891]
[1736423477779,1.534,191.51,191.41,2.6135]
[1736423477986,10.47949891,191.49,191.38,3.0564]
[1736423478773,10.47949891,191.49,191.38,1.5893]
[1736423478980,10.47949891,191.46,191.37,2.6141]
[1736423479279,2.6138,191.4,191.34,10.47949891]
[1736423479480,10.47949891,191.46,191.36,2.6142]
[1736423479888,2.6137,191.4,191.34,10.47949891]
[1736423480086,2.6137,191.4,191.35,2.6143]
[1736423480885,10.47949891,191.43,191.31,1.6017]
[1736423481183,3.1778,191.42,191.31,1.6017]
[1736423481685,3.1778,191.42,191.33,2.6146]
[1736423482088,3.1778,191.42,191.31,1.6017]
[1736423482588,2.614,191.38,191.33,2.6146]
[1736423485390,2.6139,191.39,191.34,2.6145]
[1736423487592,3.1778,191.42,191.32,10.47949891]
[1736423487787,1.5823,191.42,191.32,10.47949891]
[1736423487984,1.5537,191.45,191.32,10.47949891]
[1736423488386,2.6133,191.43,191.32,10.47949891]
[1736423488891,2.6133,191.43,191.38,2.6139]
[1736423489489,2.6135,191.42,191.38,2.6139]
[1736423489688,10.47949891,191.43,191.34,2.6144]
[1736423489890,10.47949891,191.43,191.29,10.47949891]
[1736423490287,10.47949891,191.43,191.33,2.6146]
[1736423490489,10.47949891,191.43,191.29,10.47949891]
[1736423490688,2.6139,191.39,191.29,10.47949891]
[1736423490890,2.6139,191.39,191.34,2.6144]
[1736423491391,2.614,191.38,191.34,2.6144]
[1736423492091,10.47949891,191.43,191.29,10.47949891]
[1736423492290,2.6139,191.39,191.35,2.6144]
[1736423494392,2.6141,191.38,191.33,2.6146]
[1736423494591,10.47949891,191.43,191.29,10.47949891]
[1736423495185,10.47949891,191.43,191.32,10.47949891]
[1736423495898,2.6136,191.42,191.32,10.47949891]
[1736423496086,22.08772197,191.49,191.35,10.47949891]
[1736423496292,18.06909891,191.49,191.35,10.47949891]
[1736423496595,18.06909891,191.49,191.38,10.47949891]
[1736423496596,13.48909891,191.49,191.38,10.47949891]
[1736423496897,3.0096,191.49,191.38,10.47949891]
[1736423497295,2.6127,191.48,191.38,10.47949891]
[1736423498595,2.6128,191.47,191.43,2.6132]
[1736423501798,3.0096,191.49,191.38,10.47949891]
[1736423502092,13.48909891,191.49,191.38,10.47949891]
[1736423502699,2.6132,191.44,191.4,2.6136]
[1736423503097,2.6131,191.45,191.41,2.6136]
[1736423504701,13.48909891,191.49,191.41,2.6136]
[1736423504897,10.47949891,191.46,191.36,1.6058]
[1736423505495,10.47949891,191.46,191.37,2.614]
[1736423506200,2.6137,191.41,191.37,2.614]
[1736423507096,10.47949891,191.46,191.31,1.606]
[1736423507400,10.47949891,191.43,191.31,1.606]
[1736423508197,2.6139,191.39,191.31,1.606]
[1736423508600,2.6138,191.4,191.36,2.6142]
[1736423509399,2.6135,191.42,191.31,1.606]
[1736423509606,15.05949891,191.46,191.31,1.606]
[1736423510497,15.05949891,191.46,191.36,2.6142]
[1736423510701,15.05949891,191.46,191.31,1.606]
[1736423511104,2.6138,191.4,191.36,2.6142]
[1736423512005,2.6136,191.41,191.37,2.614]
[1736423512198,15.05949891,191.46,191.31,1.606]
[1736423513799,2.6135,191.42,191.38,2.6139]
[1736423514900,2.6133,191.43,191.39,2.6138]
[1736423516907,2.6135,191.42,191.35,10.47949891]
[1736423517105,15.05949891,191.46,191.38,2.614]
[1736423518107,15.05949891,191.46,191.39,2.6138]
[1736423519206,10.47949891,191.46,191.39,2.6138]
[1736423519610,2.6135,191.42,191.39,2.6138]
[1736423520308,2.6136,191.41,191.39,2.6138]
[1736423520610,2.6137,191.4,191.38,2.6139]
[1736423520808,10.47949891,191.46,191.38,2.6139]
[1736423521205,2.6137,191.41,191.38,2.6139]
[1736423521407,10.47949891,191.46,191.36,2.6142]
[1736423521605,10.47949891,191.43,191.31,1.606]
[1736423521806,2.6141,191.37,191.31,1.606]
[1736423522099,1.5827,191.42,191.34,2.6144]
[1736423522303,2.614,191.39,191.31,1.606]
[1736423522706,2.614,191.39,191.35,2.6144]
[1736423523410,2.614,191.38,191.35,2.6144]
[1736423523602,1.5827,191.42,191.34,2.6145]
[1736423524204,1.5827,191.42,191.31,1.606]
[1736423524407,1.5886,191.41,191.31,1.606]
[1736423524913,2.6141,191.37,191.31,1.606]
[1736423525315,2.6141,191.37,191.32,6.71781325]
[1736423526114,2.6141,191.37,191.34,2.6145]